bitfinex-derivatives/quotes_BTCF0:USTF0_20241103
["timestamp","ask_amount","ask_price","bid_price","bid_amount"]
[1730633207933,0.483465,68529.0,68527.0,0.05829596]
[1730633208130,0.045705,68529.0,68528.0,0.05829596]
[1730633208332,0.045705,68529.0,68527.0,0.05829596]
[1730633208726,0.046705,68529.0,68527.0,0.05829596]
[1730633209125,0.046705,68529.0,68528.0,0.05829596]
[1730633209324,0.484465,68529.0,68527.0,0.05829596]
[1730633209520,0.046705,68529.0,68527.0,0.05829596]
[1730633210126,0.046705,68529.0,68528.0,0.05829596]
[1730633210535,0.484465,68529.0,68528.0,0.05829596]
[1730633210927,0.483465,68529.0,68528.0,0.05829596]
[1730633211126,0.484465,68529.0,68528.0,0.05829596]
[1730633211327,0.484465,68529.0,68528.0,0.04373084]
[1730633211525,0.484465,68529.0,68525.0,0.05829596]
[1730633211833,0.3608,68526.0,68525.0,0.05829596]
[1730633212643,0.45236,68526.0,68525.0,0.05829596]
[1730633214128,0.45236,68526.0,68522.0,0.07293568]
[1730633214332,0.3608,68523.0,68522.0,0.11675452]
[1730633214835,0.3608,68523.0,68522.0,0.07293568]
[1730633215034,0.3608,68523.0,68522.0,0.16743719]
[1730633215347,0.3608,68523.0,68522.0,0.09453299]
[1730633217034,0.7216,68523.0,68522.0,0.09453299]
[1730633217231,0.7236,68523.0,68522.0,0.09453299]
[1730633218137,0.8038049,68523.0,68513.0,0.0306]
[1730633218343,0.3608,68514.0,68513.0,0.0306]
[1730633218540,0.3608,68515.0,68513.0,0.0306]
[1730633218844,0.3608,68515.0,68513.0,0.07360653]
[1730633219044,0.3608,68515.0,68513.0,0.0306]
[1730633219455,0.03811211,68514.0,68513.0,0.0306]
[1730633220142,0.03711211,68514.0,68513.0,0.0306]
[1730633220335,0.3618,68515.0,68513.0,0.0306]
[1730633220534,0.3608,68515.0,68513.0,0.0306]
[1730633220839,0.001,68514.0,68513.0,0.0306]
[1730633221143,0.002,68514.0,68513.0,0.0306]
[1730633221349,0.3628,68514.0,68513.0,0.0306]
[1730633222043,0.002,68514.0,68513.0,0.0306]
[1730633222238,0.3628,68514.0,68513.0,0.0306]
[1730633222638,0.39987435,68514.0,68513.0,0.0306]
[1730633222951,0.39883925,68514.0,68513.0,0.0306]
[1730633223848,0.39983925,68514.0,68513.0,0.0306]
[1730633224147,0.39883925,68514.0,68513.0,0.0306]
[1730633224342,0.39983925,68514.0,68513.0,0.24986109]
[1730633226147,0.3628,68514.0,68513.0,0.24986109]
[1730633226350,0.31897246,68514.0,68513.0,0.5878083]
[1730633226540,0.31897246,68514.0,68513.0,0.7264579]
[1730633227340,0.31897246,68514.0,68513.0,0.72538024]
[1730633227547,0.31897246,68514.0,68513.0,0.72538055]
[1730633227743,0.31897246,68514.0,68513.0,0.27358519]
[1730633229049,0.31897246,68514.0,68513.0,0.37574537]
[1730633229552,0.31897246,68514.0,68513.0,0.27358519]
[1730633230053,0.31897246,68514.0,68513.0,0.50616652]
[1730633230244,0.31897246,68514.0,68513.0,0.40400634]
[1730633230854,0.002,68514.0,68513.0,0.40400634]
[1730633232754,0.002,68514.0,68513.0,0.50621154]
[1730633232955,0.002,68514.0,68513.0,0.40400634]
[1730633234055,0.002,68514.0,68513.0,0.27358519]
[1730633237454,0.002,68514.0,68513.0,0.40398259]
[1730633238254,0.002,68514.0,68513.0,0.62352447]
[1730633238454,0.3608,68516.0,68513.0,0.73992709]
[1730633238653,0.3608,68516.0,68514.0,0.45329579]
[1730633238856,0.3608,68516.0,68515.0,0.33689317]
[1730633239562,0.3608,68516.0,68515.0,0.43911444]
[1730633239761,0.3618,68516.0,68515.0,0.43911444]
[1730633239956,0.3628,68516.0,68515.0,0.43911444]
[1730633240161,0.3628,68516.0,68515.0,0.43913101]
[1730633240353,0.44299617,68516.0,68515.0,0.10222127]
[1730633240554,0.44399622,68516.0,68513.0,0.10357884]
[1730633240753,0.03757263,68515.0,68513.0,0.10357884]
[1730633240953,0.3628,68516.0,68514.0,0.21822779]
[1730633241159,0.03757233,68515.0,68514.0,0.21822779]
[1730633243458,0.03757233,68515.0,68514.0,0.22222779]
[1730633243459,0.03957233,68515.0,68514.0,0.22222779]
[1730633248370,0.002,68515.0,68514.0,0.42866149]
[1730633248770,0.002,68515.0,68514.0,0.2104337]
[1730633248977,0.0327,68515.0,68514.0,0.2104337]
[1730633250073,0.002,68515.0,68514.0,0.2104337]
[1730633251079,0.002,68515.0,68514.0,0.31265497]
[1730633252181,0.002,68515.0,68514.0,0.34070287]
[1730633253277,0.3608,68516.0,68514.0,0.34070287]
[1730633253587,0.3608,68516.0,68515.0,0.33670287]
[1730633254481,0.3608,68516.0,68515.0,0.2064337]
[1730633254675,0.3618,68516.0,68515.0,0.33641972]
[1730633254980,0.3618,68516.0,68515.0,0.20622003]
[1730633255175,0.3618,68516.0,68514.0,0.003]
[1730633255376,0.3628,68516.0,68515.0,0.001]
[1730633255575,0.3628,68516.0,68515.0,0.13120062]
[1730633255879,0.001,68516.0,68515.0,0.13120062]
[1730633256073,0.002,68516.0,68515.0,0.13320062]
[1730633256272,0.002,68516.0,68515.0,0.33942213]
[1730633256687,0.002,68516.0,68515.0,0.003]
[1730633257386,0.002,68516.0,68515.0,0.002]
[1730633258082,0.001,68516.0,68515.0,0.002]
[1730633258285,0.002,68516.0,68515.0,0.005]
[1730633260579,0.3628,68516.0,68515.0,0.005]
[1730633261379,0.002,68516.0,68515.0,0.005]
[1730633261581,0.3628,68516.0,68515.0,0.005]
[1730633264389,0.002,68516.0,68515.0,0.005]
[1730633264590,0.3628,68516.0,68515.0,0.005]
[1730633264791,0.002,68516.0,68515.0,0.005]
[1730633265088,0.3628,68516.0,68515.0,0.005]
[1730633266284,0.3628,68516.0,68515.0,0.09902285]
[1730633266878,0.3628,68516.0,68515.0,0.17204595]
[1730633267078,0.3628,68516.0,68515.0,0.09902285]
[1730633268092,0.3628,68516.0,68515.0,0.1720423]
[1730633268497,0.002,68516.0,68515.0,0.1720423]
[1730633268692,0.3628,68516.0,68515.0,0.1720423]
[1730633269995,0.3628,68516.0,68515.0,0.1720395]
[1730633270195,0.3628,68516.0,68515.0,0.09902285]
[1730633270590,0.3628,68516.0,68515.0,0.17203755]
[1730633270991,0.3628,68516.0,68515.0,0.09902285]
[1730633271290,0.04020719,68516.0,68515.0,0.005]
[1730633271492,0.40100719,68516.0,68515.0,0.005]
[1730633273287,0.40094897,68516.0,68515.0,0.005]
[1730633273684,0.44456974,68516.0,68515.0,0.005]
[1730633277995,0.44443452,68516.0,68515.0,0.005]
[1730633278396,0.40642077,68516.0,68515.0,0.09884694]
[1730633280003,0.40642077,68516.0,68515.0,0.2107166]
[1730633280414,0.40642077,68516.0,68515.0,0.09884694]
[1730633281693,0.40642077,68516.0,68515.0,0.21069706]
[1730633281694,0.3628,68516.0,68515.0,0.21069706]
[1730633282192,0.3628,68516.0,68515.0,0.09884694]
[1730633284798,0.3628,68516.0,68515.0,0.21069263]
[1730633285292,0.3628,68516.0,68515.0,0.09884694]
[1730633285789,0.3628,68516.0,68515.0,0.09884195]
[1730633286402,0.4448815,68516.0,68515.0,0.04148836]
[1730633286994,0.40689921,68516.0,68515.0,0.04148836]
[1730633287202,0.44472902,68516.0,68515.0,0.04148836]
[1730633290305,0.44464336,68516.0,68515.0,0.04148836]
[1730633293511,0.3628,68516.0,68515.0,0.24722828]
[1730633295011,0.3628,68516.0,68515.0,0.24726387]
[1730633299505,0.3628,68516.0,68515.0,0.247124]
[1730633304502,0.3628,68516.0,68515.0,0.13530188]
[1730633306918,0.3628,68516.0,68515.0,0.24724579]
[1730633307214,0.3628,68516.0,68515.0,0.13530188]
[1730633308413,0.3628,68516.0,68515.0,0.2472744]
[1730633308717,0.40070981,68516.0,68515.0,0.04148836]
[1730633311610,0.03990981,68516.0,68515.0,0.04148836]
[1730633311810,0.40070981,68516.0,68515.0,0.04148836]
[1730633313218,0.40067119,68516.0,68515.0,0.04148836]
[1730633315722,0.3628,68516.0,68515.0,0.24730493]
[1730633315924,0.3628,68516.0,68515.0,0.13538442]
[1730633316720,0.3628,68516.0,68515.0,0.04148836]
[1730633320117,0.3628,68516.0,68515.0,0.13544921]
[1730633320820,0.3628,68516.0,68515.0,0.04148836]
[1730633325521,0.3628,68516.0,68515.0,0.04048836]
[1730633326821,0.80064,68516.0,68515.0,0.04048836]
[1730633329019,0.43984,68516.0,68515.0,0.04048836]
[1730633329219,1.16144,68516.0,68515.0,0.04048836]
[1730633330313,0.43984,68516.0,68515.0,0.04048836]
[1730633330512,1.16144,68516.0,68515.0,0.04048836]
[1730633331119,1.24202142,68516.0,68515.0,0.04048836]
[1730633332231,0.80418142,68516.0,68515.0,0.04048836]
[1730633332629,1.24202142,68516.0,68515.0,0.04048836]
[1730633332827,1.29141882,68516.0,68515.0,0.04048836]
[1730633333323,0.56981882,68516.0,68515.0,0.04048836]
[1730633333724,1.29141882,68516.0,68515.0,0.04048836]
[1730633335935,0.56981882,68516.0,68515.0,0.04048836]
[1730633336232,1.29141882,68516.0,68515.0,0.04048836]
[1730633338326,1.16144,68516.0,68515.0,0.04048836]
[1730633339034,0.43984,68516.0,68515.0,0.04048836]
[1730633339219,1.16144,68516.0,68515.0,0.04048836]
[1730633340134,0.002,68516.0,68515.0,0.04048836]
[1730633340435,0.7236,68516.0,68515.0,0.04048836]
[1730633341139,0.81512,68516.0,68515.0,0.04048836]
[1730633343530,0.7236,68516.0,68515.0,0.04048836]
[1730633346327,0.8060024,68516.0,68515.0,0.04048836]
[1730633353334,0.7236,68516.0,68515.0,0.11349378]
[1730633354152,0.7236,68516.0,68515.0,0.20660542]
[1730633354437,0.7236,68516.0,68515.0,0.13360288]
[1730633354643,0.7236,68516.0,68515.0,0.22120938]
[1730633354839,0.7236,68516.0,68515.0,0.13360288]
[1730633357539,0.7236,68516.0,68515.0,0.13330075]
[1730633361342,0.40191501,68516.0,68515.0,0.04048836]
[1730633362041,0.40190536,68516.0,68515.0,0.04048836]
[1730633363530,0.04110536,68516.0,68515.0,0.04048836]
[1730633363751,0.40190536,68516.0,68515.0,0.04048836]
[1730633364445,0.04110536,68516.0,68515.0,0.04048836]
[1730633364750,0.40190536,68516.0,68515.0,0.04048836]
[1730633365244,0.44726903,68516.0,68515.0,0.04048836]
[1730633366141,0.44722635,68516.0,68515.0,0.04048836]
[1730633366539,0.40180075,68516.0,68515.0,0.04048836]
[1730633368345,0.3628,68516.0,68515.0,0.13342317]
[1730633371450,0.3628,68516.0,68515.0,0.13345266]
[1730633371942,0.002,68516.0,68515.0,0.13345266]
[1730633372148,0.3628,68516.0,68515.0,0.13345266]
[1730633373342,0.002,68516.0,68515.0,0.13345266]
[1730633373539,0.3628,68516.0,68515.0,0.13345266]
[1730633375839,0.3628,68516.0,68515.0,0.04048836]
[1730633376039,0.3628,68516.0,68515.0,0.13340139]
[1730633376244,0.3628,68516.0,68515.0,0.04048836]
[1730633377248,0.3628,68516.0,68515.0,0.11347069]
[1730633378750,0.002,68516.0,68515.0,0.20635706]
[1730633379048,0.3628,68516.0,68515.0,0.20635706]
[1730633381457,0.3628,68516.0,68515.0,0.13337473]
[1730633381652,0.002,68516.0,68515.0,0.13337473]
[1730633381966,0.3628,68516.0,68515.0,0.13337473]
[1730633383065,0.3628,68516.0,68515.0,0.20638952]
[1730633383252,0.3628,68516.0,68515.0,0.04048836]
[1730633383253,0.44734272,68516.0,68515.0,0.04048836]
[1730633384357,0.40192119,68516.0,68515.0,0.04048836]
[1730633384960,0.3628,68516.0,68515.0,0.04048836]
[1730633385148,0.40207106,68516.0,68515.0,0.04048836]
[1730633385558,0.40207106,68516.0,68515.0,0.26081646]
[1730633388957,0.04127106,68516.0,68515.0,0.26081646]
[1730633389768,0.0415571,68516.0,68515.0,0.26081646]
[1730633391259,0.002,68516.0,68515.0,0.46340885]
[1730633393859,0.45523446,68521.0,68515.0,0.46340885]
[1730633394056,0.45439446,68521.0,68516.0,0.20259239]
[1730633394365,0.45439446,68521.0,68520.0,0.08751327]
[1730633394567,0.45439446,68521.0,68520.0,0.17993842]
[1730633395567,0.45439446,68521.0,68520.0,0.09242515]
[1730633395965,0.45439446,68521.0,68520.0,0.17992528]
[1730633396476,0.45439446,68521.0,68520.0,0.09242515]
[1730633396670,0.3608,68521.0,68520.0,0.31211949]
[1730633396861,0.3608,68521.0,68520.0,0.42206539]
[1730633397060,0.3608,68521.0,68520.0,0.42606539]
[1730633397662,0.3618,68521.0,68520.0,0.42706539]
[1730633397862,0.3628,68521.0,68520.0,0.43006539]
[1730633398269,0.40263831,68521.0,68520.0,0.66553434]
[1730633398977,0.40263521,68521.0,68520.0,0.66553434]
[1730633399476,0.40263521,68521.0,68520.0,0.22769434]
[1730633400073,0.40263521,68521.0,68520.0,0.27148056]
[1730633400483,0.40263521,68521.0,68520.0,0.27048056]
[1730633400981,0.40263521,68521.0,68520.0,0.26948056]
[1730633401879,0.04183521,68521.0,68520.0,0.26948056]
[1730633402379,0.04178985,68521.0,68520.0,0.26948056]
[1730633404469,0.002,68521.0,68520.0,0.04978622]
[1730633404667,0.08695844,68521.0,68520.0,0.04678622]
[1730633404881,0.08595844,68521.0,68520.0,0.04378622]
[1730633405079,0.08595844,68521.0,68515.0,0.03648836]
[1730633405282,0.08595844,68521.0,68520.0,0.006]
[1730633405283,0.002,68521.0,68520.0,0.006]
[1730633405771,0.04683306,68521.0,68520.0,0.003]
[1730633405973,0.002,68521.0,68520.0,0.006]
[1730633406384,0.002,68521.0,68520.0,0.09838763]
[1730633406572,0.001,68521.0,68520.0,0.09638763]
[1730633406885,0.001,68521.0,68520.0,0.13288023]
[1730633407187,0.001,68521.0,68520.0,0.04048569]
[1730633407383,0.04457838,68525.0,68520.0,0.03648569]
[1730633407590,0.3608,68526.0,68522.0,0.05831762]
[1730633407877,0.3608,68526.0,68522.0,0.00841762]
[1730633408270,0.3608,68526.0,68525.0,0.04373846]
[1730633408480,0.3608,68526.0,68520.0,0.04248569]
[1730633408690,0.3608,68521.0,68520.0,0.03948569]
[1730633409980,0.3608,68521.0,68520.0,0.03648569]
[1730633410779,0.3608,68521.0,68520.0,0.03748569]
[1730633410996,0.3608,68521.0,68520.0,0.04048569]
[1730633421587,0.44784267,68521.0,68520.0,0.04048569]
[1730633428498,0.0914,68523.0,68520.0,0.04048569]
[1730633428802,0.3608,68521.0,68520.0,0.04048569]
[1730633429392,0.3608,68521.0,68520.0,0.11337595]
[1730633430598,0.3608,68521.0,68520.0,0.04048569]
[1730633430797,0.3608,68521.0,68520.0,0.03748569]
[1730633431102,0.3608,68521.0,68520.0,0.04048569]
[1730633431802,0.7216,68521.0,68520.0,0.04048569]
[1730633432502,1.15944,68521.0,68520.0,0.04048569]
[1730633432695,1.15944,68521.0,68520.0,0.03748569]
[1730633432895,1.45944,68521.0,68515.0,0.03648836]
[1730633433395,0.43784,68520.0,68515.0,0.03648836]
[1730633433702,0.43784,68520.0,68515.0,1e-08]
[1730633433901,0.43784,68519.0,68515.0,0.00100001]
[1730633434297,0.43784,68518.0,68515.0,0.00100001]
[1730633434699,0.43784,68518.0,68515.0,1e-08]
[1730633434700,0.50264,68517.0,68515.0,1e-08]
[1730633434900,0.50264,68517.0,68515.0,0.00200001]
[1730633435206,0.43784,68516.0,68515.0,0.00200001]
[1730633435603,0.43784,68516.0,68515.0,0.00500001]
[1730633436204,0.73784,68516.0,68515.0,0.00500001]
[1730633436403,0.73784,68516.0,68515.0,0.00300001]
[1730633436606,0.82343914,68516.0,68515.0,0.00400001]
[1730633437411,0.82343914,68516.0,68515.0,0.00300001]
[1730633437705,0.82443914,68516.0,68515.0,0.00400001]
[1730633437905,0.82443914,68516.0,68515.0,0.00100001]
[1730633438208,0.43788,68515.0,68503.0,0.0309]
[1730633438511,0.7216,68504.0,68503.0,0.0309]
[1730633438817,0.81304,68504.0,68503.0,0.0309]
[1730633440511,0.81404,68504.0,68503.0,0.0309]
[1730633441201,0.81504,68504.0,68503.0,0.0339]
[1730633441802,0.45424,68504.0,68503.0,0.0339]
[1730633442606,0.09344,68504.0,68503.0,0.0339]
[1730633442911,0.45424,68504.0,68503.0,0.0339]
[1730633443109,0.09344,68504.0,68503.0,0.0339]
[1730633443406,0.45424,68504.0,68503.0,0.0339]
[1730633443810,0.49726312,68504.0,68503.0,0.0339]
[1730633444808,0.40582312,68504.0,68503.0,0.0339]
[1730633445004,0.35592312,68504.0,68503.0,0.0339]
[1730633450014,0.3129,68504.0,68503.0,0.0339]
[1730633450507,0.3129,68504.0,68503.0,0.07855408]
[1730633450907,0.3608,68504.0,68503.0,0.07855408]
[1730633453314,0.3109,68504.0,68503.0,0.07855408]
[1730633457321,0.3109,68504.0,68503.0,0.0339]
[1730633458015,0.3109,68504.0,68503.0,0.003]
[1730633460107,0.3608,68504.0,68503.0,0.003]
[1730633460527,0.3608,68504.0,68503.0,0.07579703]
[1730633461512,0.0914,68511.0,68503.0,0.09550798]
[1730633461719,0.3608,68504.0,68503.0,0.003]
[1730633461921,0.3608,68504.0,68503.0,0.07594984]
[1730633462120,0.3608,68504.0,68503.0,0.003]
[1730633462427,0.3608,68504.0,68503.0,0.09565767]
[1730633463425,0.3608,68504.0,68503.0,0.17065773]
[1730633463622,0.3608,68504.0,68503.0,0.005]
[1730633464916,0.3608,68504.0,68503.0,0.003]
[1730633465119,0.3618,68504.0,68503.0,0.005]
[1730633466023,0.49771166,68504.0,68503.0,0.005]
[1730633466631,0.53685147,68504.0,68503.0,0.005]
[1730633466925,0.5822418,68504.0,68503.0,0.005]
[1730633467425,0.53685147,68504.0,68483.0,0.04300353]
[1730633467626,0.53685147,68504.0,68481.0,0.0325]
[1730633467627,0.7216,68490.0,68481.0,0.0325]
[1730633468026,0.7216,68490.0,68477.0,0.032]
[1730633468220,0.3608,68481.0,68477.0,0.032]
[1730633468524,0.3608,68481.0,68472.0,0.062]
[1730633468920,0.3608,68481.0,68472.0,0.10654235]
[1730633469434,0.3608,68481.0,68477.0,0.002]
[1730633469435,0.3618,68481.0,68477.0,0.002]
[1730633469625,0.3618,68481.0,68477.0,0.006]
[1730633469626,0.3628,68481.0,68477.0,0.006]
[1730633471325,0.3628,68481.0,68472.0,0.10654235]
[1730633471921,0.3618,68481.0,68472.0,0.10654235]
[1730633472130,0.3628,68481.0,68472.0,0.10654235]
[1730633472331,0.3628,68481.0,68473.0,0.21850957]
[1730633472631,0.3618,68481.0,68473.0,0.21850957]
[1730633473022,0.3628,68481.0,68473.0,0.21850957]
[1730633473218,0.002,68481.0,68473.0,0.21850957]
[1730633474629,0.002,68481.0,68477.0,0.08735644]
[1730633474943,0.002,68481.0,68478.0,0.17996899]
[1730633475128,0.002,68481.0,68479.0,0.12401255]
[1730633475326,0.002,68481.0,68480.0,0.09261255]
[1730633476145,0.002,68481.0,68480.0,0.16541303]
[1730633476339,0.002,68481.0,68480.0,0.07280048]
[1730633476531,0.002,68481.0,68479.0,0.07280048]
[1730633477029,0.002,68481.0,68478.0,0.07280048]
[1730633477221,0.002,68481.0,68477.0,0.001]
[1730633477222,0.002,68481.0,68480.0,0.0582412]
[1730633477924,0.002,68481.0,68478.0,0.0582412]
[1730633478132,0.001,68481.0,68478.0,0.0582412]
[1730633478334,0.002,68481.0,68480.0,0.001]
[1730633478934,0.0319,68482.0,68477.0,0.0582412]
[1730633479123,0.002,68481.0,68478.0,0.001]
[1730633479523,0.001,68481.0,68477.0,0.0582412]
[1730633479734,0.002,68481.0,68480.0,0.001]
[1730633480138,0.001,68481.0,68477.0,0.0582412]
[1730633480339,0.002,68481.0,68478.0,0.001]
[1730633481835,0.002,68481.0,68480.0,0.001]
[1730633482432,0.002,68481.0,68478.0,0.001]
[1730633483246,0.002,68481.0,68480.0,0.001]
[1730633483534,0.09344,68481.0,68480.0,0.001]
[1730633484747,0.09244,68481.0,68472.0,0.03651127]
[1730633484938,0.09344,68481.0,68478.0,0.001]
[1730633485135,0.45424,68481.0,68478.0,0.001]
[1730633485336,0.45324,68481.0,68472.0,0.03651127]
[1730633485534,0.45424,68481.0,68480.0,0.001]
[1730633485837,0.81504,68481.0,68480.0,0.001]
[1730633486036,0.81304,68481.0,68472.0,0.03651127]
[1730633486237,0.45424,68481.0,68478.0,0.001]
[1730633486440,0.81504,68481.0,68478.0,0.001]
[1730633486641,0.81404,68481.0,68472.0,0.03651127]
[1730633486836,0.45424,68481.0,68480.0,0.001]
[1730633487037,0.81504,68481.0,68480.0,0.001]
[1730633488853,0.81504,68481.0,68478.0,0.001]
[1730633489348,0.43808,68480.0,68472.0,0.03651127]
[1730633489551,0.3608,68473.0,68472.0,0.03651127]
[1730633491935,0.3628,68473.0,68472.0,0.03751127]
[1730633494241,0.45424,68473.0,68472.0,0.03751127]
[1730633494643,0.3628,68473.0,68472.0,0.03751127]
[1730633494847,0.45424,68473.0,68472.0,0.03751127]
[1730633500841,0.45324,68473.0,68472.0,0.03651127]
[1730633501048,0.45324,68473.0,68472.0,0.03751127]
[1730633501345,0.45424,68473.0,68472.0,0.03751127]
[1730633501751,0.49870592,68473.0,68472.0,0.03751127]
[1730633507367,1.23682592,68473.0,68472.0,0.03751127]
[1730633507553,1.23682592,68473.0,68460.0,0.0582412]
[1730633507748,0.7216,68461.0,68458.0,0.0582412]
[1730633507953,0.09144,68460.0,68458.0,0.0582412]
[1730633508156,0.09144,68460.0,68457.0,0.0582412]
[1730633508653,0.09144,68460.0,68455.0,0.0582412]
[1730633508973,0.43824,68459.0,68449.0,0.0582412]
[1730633509158,0.43824,68459.0,68445.0,0.07280048]
[1730633509159,0.7216,68450.0,68444.0,0.05836337]
[1730633509359,0.09144,68449.0,68440.0,0.05836337]
[1730633509665,0.09144,68449.0,68439.0,0.0326]
[1730633509666,0.3608,68443.0,68439.0,0.0326]
[1730633509856,0.3608,68443.0,68436.0,0.05836337]
[1730633510056,0.3608,68437.0,68436.0,0.05836337]
[1730633510257,0.45224,68437.0,68433.0,0.03]
[1730633510456,0.45224,68437.0,68434.0,0.0582786]
[1730633511160,0.45324,68437.0,68433.0,0.0882786]
[1730633511367,0.45324,68437.0,68433.0,0.03]
[1730633511565,0.45424,68437.0,68433.0,0.03]
[1730633511862,0.45424,68437.0,68432.0,0.0582786]
[1730633512256,0.45424,68437.0,68433.0,0.0582786]
[1730633512472,0.45424,68437.0,68432.0,0.0582786]
[1730633513368,0.45424,68437.0,68431.0,0.0582786]
[1730633513872,0.09144,68436.0,68431.0,0.0582786]
[1730633514376,0.09144,68435.0,68431.0,0.0582786]
[1730633514561,0.09144,68435.0,68430.0,0.0582786]
[1730633514869,0.09144,68435.0,68428.0,0.1193786]
[1730633515067,0.3628,68437.0,68428.0,0.1193786]
[1730633515267,0.09144,68434.0,68428.0,0.1193786]
[1730633515463,0.09144,68434.0,68428.0,0.0611]
[1730633516566,0.3608,68429.0,68428.0,0.0611]
[1730633516868,0.3608,68429.0,68425.0,0.03]
[1730633517077,0.7216,68429.0,68425.0,0.03]
[1730633517873,0.43844,68428.0,68413.0,0.0582786]
[1730633518074,0.43844,68428.0,68406.0,0.07280048]
[1730633518075,0.3608,68414.0,68406.0,0.0582786]
[1730633518275,0.05494365,68413.0,68406.0,0.0582786]
[1730633518572,0.05494365,68413.0,68404.0,0.0582786]
[1730633519279,0.3608,68414.0,68403.0,0.0582786]
[1730633519575,0.3608,68414.0,68402.0,0.10609899]
[1730633519576,0.09148,68413.0,68406.0,0.0582786]
[1730633520266,0.3608,68414.0,68406.0,0.0582786]
[1730633520464,0.001,68413.0,68406.0,0.0582786]
[1730633520660,0.3608,68425.0,68412.0,0.43852]
[1730633520866,0.3608,68425.0,68412.0,0.22022863]
[1730633521272,0.002,68413.0,68412.0,0.27850723]
[1730633521474,0.3608,68425.0,68412.0,0.71702723]
[1730633521776,0.3608,68425.0,68412.0,0.57850723]
[1730633522075,0.3618,68425.0,68414.0,0.0582786]
[1730633522276,0.3628,68425.0,68415.0,0.0306]
[1730633522572,0.3618,68425.0,68416.0,0.0644]
[1730633524373,0.3628,68425.0,68416.0,0.0644]
[1730633524679,0.3628,68425.0,68416.0,0.0674]
[1730633525764,0.3628,68425.0,68416.0,0.0694]
[1730633527979,0.3628,68425.0,68417.0,0.21912627]
[1730633528482,0.3628,68425.0,68421.0,0.04351467]
[1730633528677,0.3628,68425.0,68422.0,0.04351467]
[1730633528881,0.3628,68425.0,68422.0,0.26264094]
[1730633529185,0.3628,68425.0,68422.0,0.04351467]
[1730633529478,0.002,68425.0,68424.0,0.04351467]
[1730633529681,0.002,68425.0,68423.0,0.65633784]
[1730633529979,0.45452971,68433.0,68424.0,0.65633784]
[1730633530177,0.45452971,68433.0,68426.0,0.04352565]
[1730633530380,0.45452971,68433.0,68427.0,0.04352565]
[1730633530570,0.3608,68440.0,68432.0,0.3608]
[1730633530880,0.3608,68440.0,68433.0,0.063]
[1730633531065,0.3608,68440.0,68435.0,0.04352565]
[1730633531381,0.3608,68440.0,68433.0,0.28310645]
[1730633531382,0.3608,68451.0,68437.0,0.04352565]
[1730633531585,0.3608,68451.0,68440.0,0.04352565]
[1730633532266,0.3608,68451.0,68441.0,0.43832]
[1730633532464,0.3608,68451.0,68441.0,0.48184565]
[1730633532671,0.3608,68451.0,68442.0,0.43832]
[1730633533176,0.3608,68445.0,68440.0,0.04352565]
[1730633533370,0.3608,68445.0,68439.0,0.04352565]
[1730633533583,0.3608,68445.0,68440.0,0.04352565]
[1730633533965,0.00419264,68443.0,68442.0,0.011]
[1730633534773,0.00419264,68443.0,68440.0,0.021]
[1730633534974,0.00419264,68443.0,68440.0,0.011]
[1730633534975,0.00319264,68443.0,68440.0,0.011]
[1730633535181,0.00419264,68443.0,68440.0,0.011]
[1730633535572,0.00419264,68443.0,68441.0,0.04352565]
[1730633535880,0.00419264,68443.0,68442.0,0.01]
[1730633536068,0.00419264,68443.0,68442.0,0.1003786]
[1730633536264,0.00419264,68443.0,68442.0,0.10026909]
[1730633536469,0.00419264,68443.0,68442.0,0.0421]
[1730633536881,0.00419264,68443.0,68442.0,0.0521]
[1730633537374,0.00419264,68443.0,68442.0,0.20951624]
[1730633537672,0.00319264,68443.0,68442.0,0.0321]
[1730633537877,0.00319264,68443.0,68442.0,0.0431]
[1730633538075,0.00419264,68443.0,68442.0,0.0531]
[1730633539380,0.00419264,68443.0,68442.0,0.14776086]
[1730633539883,0.002,68443.0,68442.0,0.58608086]
[1730633540784,0.3608,68451.0,68442.0,0.58608086]
[1730633540976,0.3608,68451.0,68448.0,0.05823112]
[1730633541298,0.3608,68451.0,68450.0,0.04367337]
[1730633541580,0.3608,68451.0,68450.0,0.04366592]
[1730633542089,0.3608,68451.0,68450.0,0.04366611]
[1730633542270,0.3608,68451.0,68448.0,0.06123112]
[1730633542775,0.3608,68451.0,68449.0,0.05823112]
[1730633542973,0.3608,68451.0,68448.0,0.06123112]
[1730633543382,0.3608,68451.0,68449.0,0.05823112]
[1730633543779,0.3608,68451.0,68450.0,0.004]
[1730633544179,0.0309,68463.0,68450.0,0.004]
[1730633544476,0.0309,68463.0,68455.0,0.04364474]
[1730633544678,0.0309,68463.0,68456.0,0.04364474]
[1730633544882,0.0309,68463.0,68453.0,0.05819298]
[1730633544883,0.0309,68463.0,68457.0,0.04364474]
[1730633545388,0.0309,68463.0,68456.0,0.04364474]
[1730633545591,0.0309,68463.0,68457.0,0.04364474]
[1730633545888,0.0309,68463.0,68456.0,0.04364474]
[1730633546489,0.0309,68463.0,68455.0,0.04364474]
[1730633547178,0.0429,68463.0,68455.0,0.04464474]
[1730633547686,0.0349,68463.0,68455.0,0.04364474]
[1730633547987,0.0389,68463.0,68455.0,0.04364474]
[1730633548682,0.0389,68463.0,68454.0,0.04364474]
[1730633548879,0.3608,68458.0,68453.0,0.04364474]
[1730633549079,0.3608,68458.0,68452.0,0.04364474]
[1730633549484,0.3608,68458.0,68453.0,0.04364474]
[1730633550991,0.3608,68458.0,68455.0,0.04364474]
[1730633551484,0.0349,68463.0,68456.0,0.04364474]
[1730633551689,0.0349,68463.0,68457.0,0.04364474]
[1730633551882,0.0349,68463.0,68454.0,0.05819298]
[1730633551883,0.0349,68463.0,68458.0,0.04364474]
[1730633552083,0.0309,68463.0,68457.0,0.04364474]
[1730633552785,0.0309,68463.0,68458.0,0.04364474]
[1730633552986,0.0309,68463.0,68459.0,0.04364474]
[1730633553290,0.0349,68463.0,68459.0,0.04364474]
[1730633554085,0.0389,68463.0,68460.0,0.04364474]
[1730633554292,0.0389,68463.0,68456.0,0.04364474]
[1730633554488,0.3608,68458.0,68456.0,0.04364474]